[Event "Late-Titled-Tuesday-Blitz-January-16-2024"]
[Site "Chess.com"]
[Date "2024.01.16"]
[Round "2"]
[White "santosalberto1987"]
[Black "cristiano78"]
[Result "1-0"]
[WhiteElo "2510"]
[BlackElo "2224"]
[TimeControl "180+1"]
[EndTime "14:16:56 PST"]
[Termination "santosalberto1987 won by resignation"]

1. e4 {[%clk 0:03:00.9]} 1... c5 {[%clk 0:02:59.7]} 2. Nf3 {[%clk 0:03:00.9]}
2... d6 {[%clk 0:02:59.9]} 3. Bb5+ {[%clk 0:03:00.4]} 3... Bd7 {[%clk
0:02:59.9]} 4. c4 {[%clk 0:03:00.7]} 4... a6 {[%clk 0:02:58.4]} 5. Bxd7+ {[%clk
0:03:00.3]} 5... Nxd7 {[%clk 0:02:58.7]} 6. d4 {[%clk 0:02:58.4]} 6... cxd4
{[%clk 0:02:58.8]} 7. Nxd4 {[%clk 0:02:59.3]} 7... g6 {[%clk 0:02:58.3]} 8. Nc3
{[%clk 0:02:57.9]} 8... Bg7 {[%clk 0:02:56.8]} 9. b3 {[%clk 0:02:57.5]} 9...
Ngf6 {[%clk 0:02:55]} 10. f3 {[%clk 0:02:55.6]} 10... O-O {[%clk 0:02:55.1]} 11.
Be3 {[%clk 0:02:55.1]} 11... Rc8 {[%clk 0:02:55.1]} 12. Rc1 {[%clk 0:02:54.7]}
12... Nc5 {[%clk 0:02:53.4]} 13. O-O {[%clk 0:02:52.6]} 13... Ne6 {[%clk
0:02:53.1]} 14. Qd2 {[%clk 0:02:48.9]} 14... Nxd4 {[%clk 0:02:52.8]} 15. Bxd4
{[%clk 0:02:49]} 15... Qd7 {[%clk 0:02:47.7]} 16. a4 {[%clk 0:02:37.9]} 16...
Rc6 {[%clk 0:02:39.1]} 17. Nd5 {[%clk 0:02:33.8]} 17... Nxd5 {[%clk 0:02:38.7]}
18. exd5 {[%clk 0:02:32.8]} 18... Rc7 {[%clk 0:02:36.8]} 19. a5 {[%clk
0:02:26.2]} 19... h5 {[%clk 0:02:32.2]} 20. Rfe1 {[%clk 0:02:25]} 20... Re8
{[%clk 0:02:30.5]} 21. Bxg7 {[%clk 0:02:17.7]} 21... Kxg7 {[%clk 0:02:30.1]} 22.
Re3 {[%clk 0:02:13.1]} 22... e5 {[%clk 0:02:26.7]} 23. dxe6 {[%clk 0:02:10.6]}
23... Rxe6 {[%clk 0:02:27]} 24. Qd4+ {[%clk 0:01:56.9]} 24... Kg8 {[%clk
0:02:22.4]} 25. Rce1 {[%clk 0:01:54.1]} 25... Rxe3 {[%clk 0:02:21.1]} 26. Rxe3
{[%clk 0:01:54]} 26... Rc5 {[%clk 0:02:17.4]} 27. b4 {[%clk 0:01:46.7]} 27...
Rc6 {[%clk 0:02:15]} 28. h3 {[%clk 0:01:28.9]} 28... Rc8 {[%clk 0:02:10.5]} 29.
Rd3 {[%clk 0:01:25.6]} 29... Qc7 {[%clk 0:02:07.1]} 30. Rc3 {[%clk 0:01:14.7]}
30... Re8 {[%clk 0:02:01.8]} 31. Kf2 {[%clk 0:01:11.5]} 31... Qe7 {[%clk
0:01:59.1]} 32. Re3 {[%clk 0:01:08.8]} 32... Qxe3+ {[%clk 0:01:58.4]} 33. Qxe3
{[%clk 0:01:08.7]} 33... Rxe3 {[%clk 0:01:59]} 34. Kxe3 {[%clk 0:01:09.6]} 34...
Kf8 {[%clk 0:01:59.6]} 35. Kd4 {[%clk 0:01:09.5]} 35... Ke7 {[%clk 0:02:00]} 36.
Kd5 {[%clk 0:01:09.2]} 36... f6 {[%clk 0:01:56.1]} 37. h4 {[%clk 0:01:03.3]}
37... Kd7 {[%clk 0:01:50.3]} 38. b5 {[%clk 0:01:01.3]} 38... Ke7 {[%clk
0:01:33.1]} 39. bxa6 {[%clk 0:00:56.4]} 39... bxa6 {[%clk 0:01:33.2]} 40. Kc6
{[%clk 0:00:29.4]} 40... g5 {[%clk 0:01:31.9]} 41. g3 {[%clk 0:00:26.4]} 41...
gxh4 {[%clk 0:01:29.6]} 42. gxh4 {[%clk 0:00:27.3]} 42... Ke6 {[%clk 0:01:29.6]}
43. Kb6 {[%clk 0:00:27.4]} 43... Ke5 {[%clk 0:01:29.2]} 44. Kxa6 {[%clk
0:00:27.4]} 44... Kf4 {[%clk 0:01:28.1]} 45. Kb5 {[%clk 0:00:26.6]} 45... Kxf3
{[%clk 0:01:28.1]} 46. a6 {[%clk 0:00:26.9]} 46... f5 {[%clk 0:01:29]} 47. a7
{[%clk 0:00:27.2]} 47... f4 {[%clk 0:01:29.7]} 48. a8=Q+ {[%clk 0:00:28.1]}
48... Kg4 {[%clk 0:01:30.3]} 49. Qe4 {[%clk 0:00:27.4]} 1-0

[Event "Late-Titled-Tuesday-Blitz-January-16-2024"]
[Site "Chess.com"]
[Date "2024.01.16"]
[Round "2"]
[White "texie1"]
[Black "Felix-Rose"]
[Result "1-0"]
[WhiteElo "2512"]
[BlackElo "2236"]
[TimeControl "180+1"]
[EndTime "14:17:02 PST"]
[Termination "texie1 won on time"]

1. Nf3 {[%clk 0:03:00.9]} 1... d5 {[%clk 0:02:58.8]} 2. c4 {[%clk 0:03:01.6]}
2... e6 {[%clk 0:02:58.7]} 3. e3 {[%clk 0:03:02.1]} 3... Nf6 {[%clk 0:02:58.6]}
4. b3 {[%clk 0:03:02.6]} 4... Be7 {[%clk 0:02:55.6]} 5. Bb2 {[%clk 0:03:03.2]}
5... O-O {[%clk 0:02:54.7]} 6. Qc2 {[%clk 0:03:03.9]} 6... b6 {[%clk 0:02:54]}
7. Be2 {[%clk 0:03:03.7]} 7... Bb7 {[%clk 0:02:54]} 8. g4 {[%clk 0:03:04.4]}
8... c5 {[%clk 0:02:50.7]} 9. g5 {[%clk 0:03:04.2]} 9... Ne4 {[%clk 0:02:36.9]}
10. h4 {[%clk 0:03:04.7]} 10... Nc6 {[%clk 0:02:28.2]} 11. a3 {[%clk 0:03:04.8]}
11... f5 {[%clk 0:02:20.6]} 12. gxf6 {[%clk 0:02:42.6]} 12... Bxf6 {[%clk
0:02:16]} 13. d3 {[%clk 0:02:42.9]} 13... Nd6 {[%clk 0:02:11.9]} 14. Nbd2 {[%clk
0:02:42.2]} 14... d4 {[%clk 0:01:57.2]} 15. e4 {[%clk 0:02:29.8]} 15... e5
{[%clk 0:01:46.7]} 16. O-O-O {[%clk 0:02:29.7]} 16... Qe7 {[%clk 0:01:37.9]} 17.
Rdg1 {[%clk 0:02:29.6]} 17... Kh8 {[%clk 0:01:37.8]} 18. Nf1 {[%clk 0:02:22.1]}
18... a6 {[%clk 0:01:33.9]} 19. Ng3 {[%clk 0:02:17.8]} 19... b5 {[%clk
0:01:27.9]} 20. Kb1 {[%clk 0:02:09.4]} 20... bxc4 {[%clk 0:01:25.2]} 21. bxc4
{[%clk 0:02:10.3]} 21... Rab8 {[%clk 0:01:03.4]} 22. Nh5 {[%clk 0:02:06.7]}
22... Bc8 {[%clk 0:00:43.7]} 23. Ka1 {[%clk 0:02:05.1]} 23... Na5 {[%clk
0:00:42.7]} 24. Rg2 {[%clk 0:02:02.8]} 24... Bd7 {[%clk 0:00:35.2]} 25. Rhg1
{[%clk 0:01:59.6]} 25... Rf7 {[%clk 0:00:28.4]} 26. Ng5 {[%clk 0:01:34.7]} 26...
Rff8 {[%clk 0:00:17.5]} 27. Bd1 {[%clk 0:01:32.2]} 27... Nb3+ {[%clk 0:00:16.1]}
28. Ka2 {[%clk 0:01:32.1]} 28... Ba4 {[%clk 0:00:15.9]} 29. Qe2 {[%clk
0:01:31.1]} 29... h6 {[%clk 0:00:08.1]} 30. Nxf6 {[%clk 0:01:22]} 30... Rxf6
{[%clk 0:00:06.1]} 31. Nf3 {[%clk 0:01:14.4]} 31... Ne8 {[%clk 0:00:06.5]} 32.
h5 {[%clk 0:01:11.9]} 32... Qd7 {[%clk 0:00:04.6]} 33. Nh4 {[%clk 0:01:10.8]}
33... Na5 {[%clk 0:00:04.7]} 34. Ng6+ {[%clk 0:01:08]} 34... Kg8 {[%clk
0:00:04.4]} 35. Nxe5 {[%clk 0:01:06.6]} 1-0

[Event "Late-Titled-Tuesday-Blitz-January-16-2024"]
[Site "Chess.com"]
[Date "2024.01.16"]
[Round "2"]
[White "brm72"]
[Black "mbchess97"]
[Result "1/2-1/2"]
[WhiteElo "2706"]
[BlackElo "2409"]
[TimeControl "180+1"]
[EndTime "14:17:06 PST"]
[Termination "Game drawn by repetition"]

1. e4 {[%clk 0:03:00.9]} 1... c5 {[%clk 0:02:59.8]} 2. Nf3 {[%clk 0:03:00.6]}
2... d6 {[%clk 0:03:00.3]} 3. d4 {[%clk 0:03:00.5]} 3... cxd4 {[%clk 0:03:00.7]}
4. Nxd4 {[%clk 0:03:01.4]} 4... Nf6 {[%clk 0:03:01]} 5. Nc3 {[%clk 0:03:02]}
5... Nc6 {[%clk 0:03:01.3]} 6. Bg5 {[%clk 0:03:01.8]} 6... e6 {[%clk 0:03:01.3]}
7. Qd2 {[%clk 0:03:01.8]} 7... a6 {[%clk 0:03:01.6]} 8. O-O-O {[%clk 0:03:01.9]}
8... Bd7 {[%clk 0:03:01.8]} 9. Kb1 {[%clk 0:03:01.7]} 9... Be7 {[%clk
0:02:58.8]} 10. f3 {[%clk 0:03:01.4]} 10... Qc7 {[%clk 0:02:55.9]} 11. Be3
{[%clk 0:02:55.2]} 11... b5 {[%clk 0:02:51.7]} 12. Nxc6 {[%clk 0:02:54.8]} 12...
Bxc6 {[%clk 0:02:36]} 13. g4 {[%clk 0:02:51.9]} 13... b4 {[%clk 0:02:32.4]} 14.
Ne2 {[%clk 0:02:51.8]} 14... d5 {[%clk 0:02:24.8]} 15. e5 {[%clk 0:02:51.8]}
15... Nd7 {[%clk 0:02:23.1]} 16. Nd4 {[%clk 0:02:26.8]} 16... Nxe5 {[%clk
0:02:10.7]} 17. Be2 {[%clk 0:02:12.5]} 17... Nc4 {[%clk 0:02:00]} 18. Bxc4
{[%clk 0:02:10.8]} 18... dxc4 {[%clk 0:02:00.3]} 19. Nxc6 {[%clk 0:02:07.3]}
19... Qxc6 {[%clk 0:02:00.5]} 20. Bd4 {[%clk 0:02:04.8]} 20... O-O {[%clk
0:01:44.1]} 21. Qe3 {[%clk 0:02:04.2]} 21... c3 {[%clk 0:01:38.2]} 22. b3 {[%clk
0:02:02.3]} 22... a5 {[%clk 0:01:35.3]} 23. a4 {[%clk 0:01:54.9]} 23... bxa3
{[%clk 0:01:33.7]} 24. Qxc3 {[%clk 0:01:54.7]} 24... Qxc3 {[%clk 0:01:28.1]} 25.
Bxc3 {[%clk 0:01:55.6]} 25... a4 {[%clk 0:01:28.4]} 26. b4 {[%clk 0:01:55.7]}
26... Rab8 {[%clk 0:01:21]} 27. Rd4 {[%clk 0:01:49.3]} 27... Bf6 {[%clk
0:01:15.5]} 28. Rc4 {[%clk 0:01:48.7]} 28... Bxc3 {[%clk 0:01:15.1]} 29. Rxc3
{[%clk 0:01:49.6]} 29... Rxb4+ {[%clk 0:01:14.7]} 30. Ka2 {[%clk 0:01:50.2]}
30... h5 {[%clk 0:01:03.2]} 31. h3 {[%clk 0:01:49.4]} 31... Rfb8 {[%clk
0:00:58.2]} 32. Kxa3 {[%clk 0:01:49.4]} 32... hxg4 {[%clk 0:00:53.2]} 33. hxg4
{[%clk 0:01:50.3]} 33... g6 {[%clk 0:00:53.5]} 34. Rd1 {[%clk 0:01:48.9]} 34...
R8b7 {[%clk 0:00:51.1]} 35. Rc8+ {[%clk 0:01:44.5]} 35... Kg7 {[%clk 0:00:51.1]}
36. Ra8 {[%clk 0:01:43.9]} 36... Rf4 {[%clk 0:00:49.4]} 37. Rd3 {[%clk
0:01:43.7]} 37... Rc7 {[%clk 0:00:48.1]} 38. c3 {[%clk 0:01:28.5]} 38... Rfc4
{[%clk 0:00:44.8]} 39. Kb2 {[%clk 0:01:26.6]} 39... Rb7+ {[%clk 0:00:44.6]} 40.
Kc2 {[%clk 0:01:25.6]} 40... g5 {[%clk 0:00:39.5]} 41. Ra5 {[%clk 0:01:23.3]}
41... Kg6 {[%clk 0:00:36.4]} 42. Rd8 {[%clk 0:01:21]} 42... Rbc7 {[%clk
0:00:27.5]} 43. Rd3 {[%clk 0:01:17.1]} 43... R7c5 {[%clk 0:00:27.6]} 44. Ra7
{[%clk 0:01:14.1]} 44... Rc7 {[%clk 0:00:27.3]} 45. Ra5 {[%clk 0:01:13.6]} 45...
Kf6 {[%clk 0:00:20.8]} 46. Ra6 {[%clk 0:01:09.8]} 46... R7c6 {[%clk 0:00:20.4]}
47. Ra5 {[%clk 0:01:09.8]} 47... R6c5 {[%clk 0:00:20.7]} 48. Ra6 {[%clk
0:01:10]} 48... Rc6 {[%clk 0:00:21.2]} 49. Ra5 {[%clk 0:01:09.9]} 49... R6c5
{[%clk 0:00:21.7]} 50. Ra7 {[%clk 0:01:09.9]} 50... Rc7 {[%clk 0:00:21.8]} 51.
Ra5 {[%clk 0:01:09.5]} 51... R7c5 {[%clk 0:00:21.7]} 1/2-1/2

[Event "Late-Titled-Tuesday-Blitz-January-16-2024"]
[Site "Chess.com"]
[Date "2024.01.16"]
[Round "2"]
[White "Incognito_Knight"]
[Black "Jbd735"]
[Result "1/2-1/2"]
[WhiteElo "2757"]
[BlackElo "2534"]
[TimeControl "180+1"]
[EndTime "14:17:07 PST"]
[Termination "Game drawn by repetition"]

1. e4 {[%clk 0:02:54.2]} 1... e5 {[%clk 0:02:58.7]} 2. Nf3 {[%clk 0:02:54.1]}
2... Nc6 {[%clk 0:02:58.8]} 3. Nc3 {[%clk 0:02:54.7]} 3... Nf6 {[%clk
0:02:57.1]} 4. a3 {[%clk 0:02:54.8]} 4... g6 {[%clk 0:02:46.8]} 5. Bc4 {[%clk
0:02:53.2]} 5... Bg7 {[%clk 0:02:46.5]} 6. d3 {[%clk 0:02:53.4]} 6... O-O {[%clk
0:02:46.4]} 7. h3 {[%clk 0:02:51.6]} 7... d6 {[%clk 0:02:45.6]} 8. O-O {[%clk
0:02:51.8]} 8... Be6 {[%clk 0:02:44.4]} 9. Be3 {[%clk 0:02:46.8]} 9... Qd7
{[%clk 0:02:39.3]} 10. Ng5 {[%clk 0:02:41.2]} 10... Bxc4 {[%clk 0:02:36.8]} 11.
dxc4 {[%clk 0:02:42.1]} 11... h6 {[%clk 0:02:12.3]} 12. Nf3 {[%clk 0:02:41.9]}
12... Kh7 {[%clk 0:02:12.2]} 13. Qd3 {[%clk 0:02:41.3]} 13... Nh5 {[%clk
0:02:11.1]} 14. c5 {[%clk 0:02:21.3]} 14... Rad8 {[%clk 0:02:07.8]} 15. cxd6
{[%clk 0:02:12.4]} 15... cxd6 {[%clk 0:02:03.3]} 16. Rad1 {[%clk 0:02:06]} 16...
f5 {[%clk 0:02:02.6]} 17. exf5 {[%clk 0:01:41]} 17... gxf5 {[%clk 0:02:03.5]}
18. g4 {[%clk 0:01:41]} 18... e4 {[%clk 0:01:52.4]} 19. Nxe4 {[%clk 0:01:40.7]}
19... fxe4 {[%clk 0:01:53.3]} 20. Qxe4+ {[%clk 0:01:41.6]} 20... Kh8 {[%clk
0:01:53.7]} 21. gxh5 {[%clk 0:01:42]} 21... Qxh3 {[%clk 0:01:53.5]} 22. Nh4
{[%clk 0:01:42]} 22... Ne5 {[%clk 0:01:46.5]} 23. Rd5 {[%clk 0:00:53.5]} 23...
Rde8 {[%clk 0:01:38.2]} 24. Rxe5 {[%clk 0:00:42.2]} 24... Bxe5 {[%clk
0:00:49.7]} 25. Ng6+ {[%clk 0:00:41.7]} 25... Kg8 {[%clk 0:00:42.6]} 26. f4
{[%clk 0:00:38.3]} 26... Qg3+ {[%clk 0:00:35.5]} 27. Kh1 {[%clk 0:00:31.1]}
27... Qh3+ {[%clk 0:00:21.5]} 28. Kg1 {[%clk 0:00:30.8]} 28... Qg3+ {[%clk
0:00:16.7]} 29. Kh1 {[%clk 0:00:21.8]} 29... Qh3+ {[%clk 0:00:16.8]} 30. Kg1
{[%clk 0:00:21.9]} 1/2-1/2

[Event "Late-Titled-Tuesday-Blitz-January-16-2024"]
[Site "Chess.com"]
[Date "2024.01.16"]
[Round "2"]
[White "Sargsyan_Shant"]
[Black "Macron20hTF1"]
[Result "1-0"]
[WhiteElo "2873"]
[BlackElo "2554"]
[TimeControl "180+1"]
[EndTime "14:17:12 PST"]
[Termination "Sargsyan_Shant won by resignation"]

1. c4 {[%clk 0:03:00.9]} 1... c6 {[%clk 0:02:51.4]} 2. Nf3 {[%clk 0:02:57.9]}
2... d5 {[%clk 0:02:52.3]} 3. g3 {[%clk 0:02:58.4]} 3... Nf6 {[%clk 0:02:45.7]}
4. Bg2 {[%clk 0:02:58.5]} 4... e6 {[%clk 0:02:46.6]} 5. O-O {[%clk 0:02:58.5]}
5... Be7 {[%clk 0:02:46.7]} 6. d4 {[%clk 0:02:57.7]} 6... O-O {[%clk 0:02:42.3]}
7. Qc2 {[%clk 0:02:57.6]} 7... b6 {[%clk 0:02:40.7]} 8. Nbd2 {[%clk 0:02:57.6]}
8... Bb7 {[%clk 0:02:40.5]} 9. Rd1 {[%clk 0:02:57]} 9... Nbd7 {[%clk 0:02:39.8]}
10. e4 {[%clk 0:02:57.3]} 10... c5 {[%clk 0:02:37.7]} 11. e5 {[%clk 0:02:55.4]}
11... Ne4 {[%clk 0:02:37.9]} 12. cxd5 {[%clk 0:02:54.5]} 12... exd5 {[%clk
0:02:37.2]} 13. dxc5 {[%clk 0:02:37.5]} 13... Rc8 {[%clk 0:02:14.1]} 14. b4
{[%clk 0:02:27.8]} 14... Nxf2 {[%clk 0:02:07.4]} 15. Kxf2 {[%clk 0:02:17.2]}
15... Nxc5 {[%clk 0:02:07.7]} 16. Kg1 {[%clk 0:01:58.7]} 16... Ne4 {[%clk
0:02:07.2]} 17. Qd3 {[%clk 0:01:55.7]} 17... Bxb4 {[%clk 0:01:48.3]} 18. Bb2
{[%clk 0:01:48.6]} 18... Bc5+ {[%clk 0:01:41.8]} 19. Bd4 {[%clk 0:01:47.1]}
19... h6 {[%clk 0:01:35.5]} 20. Nb3 {[%clk 0:01:41.7]} 20... Qe7 {[%clk
0:01:31.7]} 21. Rac1 {[%clk 0:01:29.7]} 21... Rc7 {[%clk 0:01:22]} 22. Nxc5
{[%clk 0:01:22.4]} 22... bxc5 {[%clk 0:01:17.8]} 23. Bb2 {[%clk 0:01:22.9]}
23... d4 {[%clk 0:01:07.4]} 24. Nxd4 {[%clk 0:01:15.4]} 24... Qxe5 {[%clk
0:00:58.5]} 25. Qc2 {[%clk 0:01:04.6]} 25... Re8 {[%clk 0:00:25]} 26. Nb5 {[%clk
0:01:00.9]} 26... Qh5 {[%clk 0:00:16.9]} 27. Nxc7 {[%clk 0:00:55.3]} 27... Ng5
{[%clk 0:00:17.4]} 28. Nxe8 {[%clk 0:00:39.9]} 28... Nf3+ {[%clk 0:00:15.7]} 29.
Bxf3 {[%clk 0:00:34.7]} 29... Qxf3 {[%clk 0:00:15.8]} 30. Nf6+ {[%clk
0:00:35.3]} 30... gxf6 {[%clk 0:00:15.5]} 31. Rd8+ {[%clk 0:00:35.7]} 31... Kg7
{[%clk 0:00:15.4]} 32. Bxf6+ {[%clk 0:00:36.3]} 32... Qxf6 {[%clk 0:00:14.7]}
33. Qc3 {[%clk 0:00:35.2]} 1-0

[Event "Late-Titled-Tuesday-Blitz-January-16-2024"]
[Site "Chess.com"]
[Date "2024.01.16"]
[Round "2"]
[White "Navyblue1"]
[Black "scandalgod"]
[Result "0-1"]
[WhiteElo "2180"]
[BlackElo "2496"]
[TimeControl "180+1"]
[EndTime "14:17:12 PST"]
[Termination "scandalgod won by resignation"]

1. d4 {[%clk 0:02:50.9]} 1... d5 {[%clk 0:02:58.7]} 2. c4 {[%clk 0:02:48.9]}
2... c6 {[%clk 0:02:57.3]} 3. cxd5 {[%clk 0:02:46.2]} 3... cxd5 {[%clk
0:02:57.2]} 4. Nc3 {[%clk 0:02:46.9]} 4... Nf6 {[%clk 0:02:56.8]} 5. Bf4 {[%clk
0:02:46.2]} 5... Nc6 {[%clk 0:02:57.2]} 6. e3 {[%clk 0:02:46.7]} 6... a6 {[%clk
0:02:56.7]} 7. Nf3 {[%clk 0:02:42.2]} 7... Bg4 {[%clk 0:02:56.3]} 8. Be2 {[%clk
0:02:39.2]} 8... e6 {[%clk 0:02:55.8]} 9. O-O {[%clk 0:02:34.4]} 9... Bd6 {[%clk
0:02:55.4]} 10. Ne5 {[%clk 0:01:56.9]} 10... Bxe5 {[%clk 0:02:51.4]} 11. dxe5
{[%clk 0:01:44]} 11... Bxe2 {[%clk 0:02:50.2]} 12. Qxe2 {[%clk 0:01:43.5]} 12...
Nd7 {[%clk 0:02:50.7]} 13. Qh5 {[%clk 0:01:43.2]} 13... O-O {[%clk 0:02:47.7]}
14. Rfd1 {[%clk 0:01:24.1]} 14... Qe7 {[%clk 0:02:45.9]} 15. Ne2 {[%clk
0:01:13.3]} 15... Rfc8 {[%clk 0:02:44.5]} 16. h3 {[%clk 0:00:50.9]} 16... g6
{[%clk 0:02:43.3]} 17. Qh6 {[%clk 0:00:48.9]} 17... Ndxe5 {[%clk 0:02:40.9]} 18.
Bxe5 {[%clk 0:00:48.8]} 18... Nxe5 {[%clk 0:02:40.4]} 19. Nd4 {[%clk 0:00:37.8]}
19... Qf6 {[%clk 0:02:37.9]} 20. Rf1 {[%clk 0:00:22.4]} 20... Rc4 {[%clk
0:02:35.6]} 21. f4 {[%clk 0:00:20.2]} 21... Nc6 {[%clk 0:02:35.5]} 22. Nxc6
{[%clk 0:00:19.3]} 22... Rxc6 {[%clk 0:02:35]} 23. Rae1 {[%clk 0:00:17.3]} 23...
Rac8 {[%clk 0:02:33.8]} 24. Rf2 {[%clk 0:00:16.7]} 24... Rc2 {[%clk 0:02:32.6]}
25. Ree2 {[%clk 0:00:16.4]} 25... Rxe2 {[%clk 0:02:31.9]} 26. Rxe2 {[%clk
0:00:17.3]} 26... Qf5 {[%clk 0:02:31.8]} 27. Qh4 {[%clk 0:00:16]} 27... Qe4
{[%clk 0:02:30.5]} 28. Qf2 {[%clk 0:00:15.9]} 28... Rc1+ {[%clk 0:02:25.2]} 29.
Kh2 {[%clk 0:00:16.4]} 29... Kg7 {[%clk 0:02:24.2]} 30. Rd2 {[%clk 0:00:16]}
30... h5 {[%clk 0:02:22.1]} 31. Rd4 {[%clk 0:00:15.9]} 31... Qb1 {[%clk
0:02:22.1]} 32. Rd2 {[%clk 0:00:15.3]} 32... Rh1+ {[%clk 0:02:21.3]} 33. Kg3
{[%clk 0:00:15.4]} 33... Rf1 {[%clk 0:02:19.1]} 34. Qe2 {[%clk 0:00:14.7]} 34...
Re1 {[%clk 0:02:09.1]} 35. Qf2 {[%clk 0:00:14.3]} 35... Rc1 {[%clk 0:02:06.7]}
36. Qe2 {[%clk 0:00:14.1]} 36... Qxa2 {[%clk 0:01:56.5]} 37. Qd3 {[%clk
0:00:12.2]} 37... Qc4 {[%clk 0:01:55.7]} 38. Qd4+ {[%clk 0:00:12.2]} 38... Qxd4
{[%clk 0:01:55.8]} 39. Rxd4 {[%clk 0:00:12.3]} 39... Rc4 {[%clk 0:01:54.4]} 40.
Rd3 {[%clk 0:00:12.2]} 40... Rb4 {[%clk 0:01:54.7]} 41. b3 {[%clk 0:00:11]}
41... b5 {[%clk 0:01:54.9]} 42. Kf3 {[%clk 0:00:11.3]} 42... Kf6 {[%clk
0:01:54.9]} 43. Ke2 {[%clk 0:00:11.9]} 43... Kf5 {[%clk 0:01:54.8]} 44. Kf3
{[%clk 0:00:11.9]} 44... a5 {[%clk 0:01:54.3]} 45. Rc3 {[%clk 0:00:12.3]} 45...
a4 {[%clk 0:01:54.2]} 46. bxa4 {[%clk 0:00:12.5]} 46... bxa4 {[%clk 0:01:54.7]}
47. Rc7 {[%clk 0:00:12.9]} 47... Kf6 {[%clk 0:01:55.1]} 48. g4 {[%clk
0:00:12.9]} 48... hxg4+ {[%clk 0:01:54.9]} 49. hxg4 {[%clk 0:00:13.8]} 49... Rb3
{[%clk 0:01:53.6]} 50. g5+ {[%clk 0:00:14.2]} 50... Kg7 {[%clk 0:01:53.7]} 51.
Kf2 {[%clk 0:00:14.1]} 51... a3 {[%clk 0:01:53.6]} 52. Ra7 {[%clk 0:00:14.3]}
52... Kf8 {[%clk 0:01:49.4]} 53. Ke2 {[%clk 0:00:13.5]} 53... Rb2+ {[%clk
0:01:48.3]} 54. Kf3 {[%clk 0:00:13.8]} 54... a2 {[%clk 0:01:48.2]} 55. Kg3
{[%clk 0:00:13.7]} 55... Ke8 {[%clk 0:01:47.2]} 56. Kf3 {[%clk 0:00:13.8]} 56...
Kd8 {[%clk 0:01:47.4]} 57. Kg3 {[%clk 0:00:12.9]} 57... Kc8 {[%clk 0:01:47.6]}
58. Kf3 {[%clk 0:00:12.8]} 58... Kb8 {[%clk 0:01:48.1]} 59. Ra3 {[%clk
0:00:12.9]} 59... Kb7 {[%clk 0:01:48.3]} 60. Kg3 {[%clk 0:00:13.2]} 60... Kb6
{[%clk 0:01:48.7]} 61. Kf3 {[%clk 0:00:13.7]} 61... Kb5 {[%clk 0:01:48.6]} 62.
Kg3 {[%clk 0:00:13.9]} 62... Kb4 {[%clk 0:01:49.1]} 63. Ra8 {[%clk 0:00:14.1]}
63... Kc3 {[%clk 0:01:49.3]} 64. Kf3 {[%clk 0:00:12.9]} 64... Kc2 {[%clk
0:01:49.8]} 65. Rc8+ {[%clk 0:00:12.9]} 65... Kb1 {[%clk 0:01:50]} 66. Ra8
{[%clk 0:00:13.6]} 66... Rb7 {[%clk 0:01:50]} 0-1

[Event "Late-Titled-Tuesday-Blitz-January-16-2024"]
[Site "Chess.com"]
[Date "2024.01.16"]
[Round "2"]
[White "katharinareinecke"]
[Black "sebastianmarinp"]
[Result "0-1"]
[WhiteElo "2036"]
[BlackElo "2453"]
[TimeControl "180+1"]
[EndTime "14:17:14 PST"]
[Termination "sebastianmarinp won by resignation"]

1. d4 {[%clk 0:03:00.9]} 1... d5 {[%clk 0:02:56.8]} 2. c4 {[%clk 0:03:01]} 2...
e6 {[%clk 0:02:56.6]} 3. Nf3 {[%clk 0:03:01.2]} 3... Nf6 {[%clk 0:02:55.8]} 4.
g3 {[%clk 0:03:01.5]} 4... Bb4+ {[%clk 0:02:52.8]} 5. Bd2 {[%clk 0:03:01.1]}
5... a5 {[%clk 0:02:51.7]} 6. Bg2 {[%clk 0:02:59.7]} 6... O-O {[%clk 0:02:48.3]}
7. O-O {[%clk 0:02:59.5]} 7... dxc4 {[%clk 0:02:47]} 8. e3 {[%clk 0:02:56.1]}
8... Nbd7 {[%clk 0:02:36.5]} 9. a3 {[%clk 0:02:49.7]} 9... Be7 {[%clk
0:02:33.4]} 10. Qc2 {[%clk 0:02:43.1]} 10... Nb6 {[%clk 0:02:32.7]} 11. Ne5
{[%clk 0:02:41.5]} 11... c5 {[%clk 0:02:13.5]} 12. dxc5 {[%clk 0:02:30.2]} 12...
Bxc5 {[%clk 0:02:14.4]} 13. Nxc4 {[%clk 0:02:27.9]} 13... Nxc4 {[%clk
0:02:12.4]} 14. Qxc4 {[%clk 0:02:27.4]} 14... Qe7 {[%clk 0:02:07.6]} 15. Bc3
{[%clk 0:02:14.7]} 15... Bd7 {[%clk 0:02:00.8]} 16. Bxb7 {[%clk 0:02:00]} 16...
Rab8 {[%clk 0:01:59.4]} 17. Bg2 {[%clk 0:01:57.4]} 17... Bb5 {[%clk 0:01:56.7]}
18. Qf4 {[%clk 0:01:41.5]} 18... Bxf1 {[%clk 0:01:52.8]} 19. Bxf1 {[%clk
0:01:34.3]} 19... Nd5 {[%clk 0:01:44.8]} 20. Qa4 {[%clk 0:00:58.3]} 20... Qb7
{[%clk 0:01:06.2]} 21. b4 {[%clk 0:00:45.2]} 21... axb4 {[%clk 0:00:59.9]} 22.
axb4 {[%clk 0:00:38.8]} 22... Bxb4 {[%clk 0:00:37.9]} 23. Bxb4 {[%clk
0:00:36.7]} 23... Qxb4 {[%clk 0:00:38.8]} 24. Qxb4 {[%clk 0:00:33.7]} 24... Rxb4
{[%clk 0:00:37.9]} 25. Nd2 {[%clk 0:00:29.8]} 25... g6 {[%clk 0:00:37.1]} 26.
Nf3 {[%clk 0:00:28.5]} 26... Rb2 {[%clk 0:00:33.3]} 27. Nd4 {[%clk 0:00:24.9]}
27... Nc3 {[%clk 0:00:27.7]} 28. h4 {[%clk 0:00:20.3]} 28... Ne4 {[%clk
0:00:26.1]} 29. Be2 {[%clk 0:00:20.1]} 29... e5 {[%clk 0:00:24]} 30. Bd3 {[%clk
0:00:17.3]} 30... Nxf2 {[%clk 0:00:22.6]} 0-1